bitfinex/quotes_ETHUSD_20250602
["timestamp","ask_amount","ask_price","bid_price","bid_amount"]
[1748874630318,0.04936349,2532.5,2532.1,1.405]
[1748874630516,3.94905739,2532.3,2532.2,1.405]
[1748874630966,3.94884546,2532.4,2532.2,1.405]
[1748874631165,3.99834443,2532.3,2532.2,1.405]
[1748874631685,4.80794443,2532.3,2532.2,1.405]
[1748874631877,3.94941651,2532.1,2532.0,1.405]
[1748874632071,3.99878715,2532.1,2532.0,1.405]
[1748874632471,0.04937064,2532.1,2532.0,1.405]
[1748874633188,3.99866174,2532.1,2532.0,1.405]
[1748874633693,0.04937064,2532.1,2532.0,1.405]
[1748874634204,0.8098,2532.8,2532.4,3.94868142]
[1748874634408,0.04936534,2532.7,2531.4,3.95038318]
[1748874634597,0.04936534,2532.7,2532.2,3.94909947]
[1748874634794,0.04936534,2532.7,2532.3,8.55985866]
[1748874635121,3.96804698,2532.9,2531.7,0.39810935]
[1748874635122,0.02,2532.9,2532.8,3.94819962]
[1748874635319,0.02,2532.9,2532.8,8.55719962]
[1748874635507,0.02,2532.9,2532.8,6.015]
[1748874636215,0.02,2532.9,2531.5,8.0]
[1748874636357,4.73819962,2532.8,2532.3,3.94896809]
[1748874636559,3.99773247,2532.7,2532.0,3.94931881]
[1748874636861,3.99773247,2532.7,2531.2,4.50061235]
[1748874636862,0.7681,2532.6,2532.1,1.405]
[1748874637072,0.0493704,2532.5,2532.1,1.405]
[1748874637311,3.94889867,2532.4,2532.1,1.405]
[1748874637455,4.76653683,2532.3,2532.1,1.405]
[1748874637794,0.7681,2532.3,2532.1,1.405]
[1748874638093,0.8174684,2532.3,2532.1,1.405]
[1748874638474,0.7681,2532.3,2532.1,1.405]
[1748874638672,0.7681,2532.3,2532.1,5.35426663]
[1748874638978,0.7681,2532.3,2532.1,1.405]
[1748874638979,3.99850311,2532.2,2532.1,1.405]
[1748874639178,0.04936798,2532.2,2532.1,1.405]
[1748874639720,0.7565,2532.1,2531.9,1.405]
[1748874640013,0.04937505,2532.2,2531.9,9.95949131]
[1748874640216,0.7565,2532.5,2532.3,3.94885355]
[1748874640416,0.7565,2532.5,2532.4,3.94882325]
[1748874640615,0.02,2532.9,2532.3,4.605]
[1748874640616,0.7975,2532.9,2532.3,4.605]
[1748874641274,0.02,2532.9,2532.8,3.94819962]
[1748874641619,0.02,2532.9,2532.8,26.48619962]
[1748874641947,0.02,2532.9,2532.8,27.03619962]
[1748874643290,0.02,2532.9,2532.8,21.88119962]
[1748874643632,0.02,2532.9,2532.8,26.48619962]
[1748874643912,0.02,2532.9,2532.8,27.03619962]
[1748874645383,0.02,2532.9,2532.8,26.48619962]
[1748874645595,0.02,2532.9,2532.8,20.47619962]
[1748874645912,0.02,2532.9,2532.8,26.48419962]
[1748874646218,0.02,2532.9,2532.8,21.88019962]
[1748874646403,0.02,2532.9,2532.8,26.48419962]
[1748874646583,0.02,2532.9,2532.8,20.47619962]
[1748874646782,0.02,2532.9,2532.8,26.48319962]
[1748874647213,0.02,2532.9,2532.8,27.03319962]
[1748874647712,0.02,2533.9,2533.8,3.9466414]
[1748874647909,0.02,2533.9,2533.8,9.9536414]
[1748874648617,0.02,2533.9,2533.8,3.9466414]
[1748874648817,0.02,2533.9,2533.8,9.9536414]
[1748874649333,0.02,2533.9,2533.8,5.3506414]
[1748874649477,0.02,2533.9,2533.8,9.9536414]
[1748874649679,0.02,2533.9,2533.8,3.9466414]
[1748874649887,0.02,2533.9,2533.8,5.3506414]
[1748874650115,0.02,2533.9,2533.0,3.94788787]
[1748874650317,0.02,2533.9,2533.8,3.9466414]
[1748874650522,0.02,2533.9,2533.8,8.5486414]
[1748874650978,0.02,2533.9,2533.7,3.94672151]
[1748874651332,0.02,2533.9,2533.8,6.006]
[1748874651910,0.02,2533.9,2533.8,9.9526414]
[1748874652481,0.02,2533.9,2533.0,4.34412507]
[1748874652482,0.02,2533.9,2533.0,0.3962372]
[1748874652704,0.02,2533.9,2533.7,3.94677477]
[1748874652899,0.02,2533.9,2533.8,6.006]
[1748874653092,0.02,2533.9,2533.8,9.9526414]
[1748874653312,0.8206,2533.9,2532.9,3.9479123]
[1748874653516,0.8206,2533.9,2533.5,3.94706946]
[1748874653517,0.04933643,2533.8,2533.5,3.94706946]
[1748874653701,0.04933643,2533.8,2533.6,4.602]
[1748874654043,0.7715,2533.7,2532.6,0.39024197]
[1748874654219,0.04934229,2533.6,2532.8,3.94819962]
[1748874654539,0.7715,2533.7,2532.7,14.53]
[1748874654540,0.7715,2533.7,2533.5,3.94704886]
[1748874654694,0.02,2533.9,2533.7,3.94672832]
[1748874654896,0.02,2533.9,2532.8,3.94819962]
[1748874655096,0.02,2533.9,2533.4,3.94719415]
[1748874655097,0.04933397,2533.8,2533.4,3.94719415]
[1748874655303,0.04933397,2533.8,2533.5,4.602]
[1748874655912,0.02,2533.9,2533.7,3.94667991]
[1748874656126,0.02,2533.9,2533.8,1.404]
[1748874656520,0.02,2533.9,2533.8,5.3506414]
[1748874657067,0.0693331,2533.9,2533.8,1.404]
[1748874657252,0.0693331,2533.9,2532.9,8.0]
[1748874657553,4.01582254,2533.9,2533.3,3.94729008]
[1748874657712,0.0693331,2533.9,2532.8,11.94818476]
[1748874657918,0.0693331,2533.9,2532.9,1.404]
[1748874657919,3.94722363,2533.5,2532.9,1.404]
[1748874658140,0.04934376,2533.4,2533.0,4.602]
[1748874658341,3.94717266,2533.5,2533.0,4.602]
[1748874658544,0.04934627,2533.4,2533.0,4.602]
[1748874658749,0.04934627,2533.5,2533.0,4.602]
[1748874658912,3.9961499,2533.7,2533.1,3.94769297]
[1748874659113,0.92588041,2533.7,2533.0,4.602]
[1748874659358,3.94718412,2533.5,2533.0,4.602]
[1748874659561,3.99663326,2533.4,2533.0,4.602]
[1748874659852,0.7917,2533.3,2533.1,5.996]
[1748874660010,0.7917,2533.3,2533.2,5.996]
[1748874660211,0.84104535,2533.3,2533.2,5.996]
[1748874660617,4.78846571,2533.3,2533.2,1.394]
[1748874660875,3.94799461,2533.0,2532.7,8.524]
[1748874661187,1.71461821,2533.3,2532.8,5.996]
[1748874661188,0.04935291,2533.2,2532.8,5.996]
[1748874661392,0.7917,2533.3,2532.9,3.94793096]
[1748874661589,0.7917,2533.3,2532.9,3.94796841]
[1748874661761,0.7917,2533.3,2533.0,3.94785901]
[1748874662114,0.7917,2533.3,2533.1,3.94758274]
[1748874662273,0.04934355,2533.6,2533.1,3.94764047]
[1748874662483,0.8023,2533.8,2532.8,5.996]
[1748874662646,0.02,2533.9,2533.5,3.94704178]
[1748874662844,0.06933406,2533.9,2533.6,5.996]
[1748874663103,3.94671779,2533.8,2533.6,1.394]
[1748874663299,3.96657285,2533.9,2533.7,4.602]
[1748874663453,3.9466414,2533.8,2533.7,4.602]
[1748874664182,3.94695055,2533.7,2533.1,3.94765756]
[1748874664383,3.94739439,2533.4,2533.2,1.394]
[1748874664719,0.7637,2533.2,2532.5,1.394]
[1748874664872,8.55,2533.5,2531.6,8.524]
[1748874664873,0.7637,2532.5,2531.6,8.524]
[1748874665075,3.9490609,2532.3,2531.7,5.3438439]
[1748874665274,0.7637,2532.5,2532.1,3.9492911]
[1748874665592,0.7637,2532.5,2532.0,3.94937589]
[1748874665903,3.94898634,2532.3,2532.1,4.601]
[1748874666056,3.99861688,2532.2,2531.6,8.524]
[1748874666257,0.7609,2532.0,2531.7,1.394]
[1748874666596,0.04937429,2531.9,2531.8,4.601]
[1748874666958,0.81027299,2532.0,2531.8,4.601]
[1748874667602,3.94970582,2531.9,2531.3,3.95041512]
[1748874667896,8.77511541,2531.8,2531.6,1.394]
[1748874668069,0.7609,2532.0,2531.6,5.996]
[1748874668270,0.0493765,2531.9,2531.6,5.996]
[1748874668726,0.7835,2532.4,2532.2,3.94906083]
[1748874668912,0.7835,2532.4,2532.3,8.55097918]
[1748874669291,0.7774,2532.8,2532.5,3.94866732]
[1748874669650,0.04935995,2532.7,2532.6,1.394]
[1748874670514,4.74420342,2532.6,2532.1,5.996]
[1748874670699,0.7956,2532.9,2532.1,5.996]
[1748874671039,3.9484579,2532.7,2532.1,5.996]
[1748874671221,9.5382009,2532.6,2532.1,5.996]
[1748874671412,0.7631,2532.6,2532.2,3.94910707]
[1748874671629,0.04936172,2532.5,2532.2,3.94904178]
[1748874671827,0.7631,2532.6,2532.5,3.94866732]
[1748874672036,0.7631,2532.6,2532.2,3.94913513]
[1748874672341,0.7631,2532.6,2532.3,1.394]
[1748874672538,0.7631,2532.6,2532.4,9.94475472]
[1748874672689,8.0,2532.8,2532.6,3.94851141]
[1748874672886,0.04935752,2532.8,2532.6,3.94847649]
[1748874673089,0.04935752,2532.8,2532.5,5.34262191]
[1748874673331,0.04935752,2532.8,2531.3,0.55]
[1748874673332,0.04935752,2532.8,2530.6,9.12762502]
[1748874673532,9.55203602,2532.5,2531.2,5.997]
[1748874673720,9.55203602,2532.5,2531.2,9.9476601]
[1748874673721,0.04936899,2532.4,2531.2,9.9476601]
[1748874673920,3.99826403,2532.4,2531.9,3.94953175]
[1748874674116,0.04936899,2532.4,2532.0,4.603]
[1748874674360,0.8263,2532.5,2532.4,3.94882325]
[1748874674530,0.7871,2532.8,2532.7,3.9483555]
[1748874674995,0.7871,2532.8,2532.5,5.996]
[1748874675604,2.29523223,2533.2,2532.5,5.996]
[1748874675605,4.75609045,2533.1,2532.5,5.996]
[1748874676028,0.80835447,2533.1,2532.5,9.94464856]
[1748874676232,3.94796601,2533.0,2532.5,5.996]
[1748874676432,3.94806973,2532.9,2532.6,4.602]
[1748874676600,3.94806973,2532.9,2532.5,1.394]
[1748874676601,3.94827725,2532.8,2532.7,4.602]
[1748874676809,3.94851141,2532.6,2532.5,1.394]
[1748874677060,3.94851141,2532.6,2531.1,0.02]
[1748874677061,0.7883,2532.4,2531.1,0.02]
[1748874677223,3.94971813,2531.9,2531.6,1.394]
[1748874677410,0.0493765,2531.8,2531.6,1.394]
[1748874677716,0.0493765,2531.8,2531.7,4.602]
[1748874677888,3.99913556,2531.8,2531.7,4.602]
[1748874678095,3.94991507,2531.7,2531.6,1.394]
[1748874678331,12.67565109,2531.7,2531.6,1.394]
[1748874678521,8.72573602,2531.7,2531.1,0.02]
[1748874678731,3.95053924,2531.3,2531.2,1.394]
[1748874678902,3.95053924,2531.3,2531.2,5.996]
[1748874679108,4.78672446,2531.3,2531.2,5.996]
[1748874679308,4.78672446,2531.3,2531.2,1.394]
[1748874679509,3.95069532,2531.2,2531.1,0.02]
[1748874679737,4.42938337,2531.2,2531.1,0.02]
[1748874680238,3.95069532,2531.2,2531.1,0.02]
[1748874681002,4.0000888,2531.2,2531.1,0.02]
[1748874681733,12.7616888,2531.2,2531.1,0.02]
[1748874681898,12.71229532,2531.2,2531.1,0.02]
[1748874682103,4.70591974,2530.8,2530.5,1.394]
[1748874682443,3.95163202,2530.6,2530.5,1.394]
[1748874682814,4.00103385,2530.6,2530.5,1.394]
[1748874683145,9.48033602,2530.8,2530.5,1.394]
[1748874683146,0.7546,2530.8,2530.5,1.394]
[1748874683466,0.0493962,2530.9,2530.6,3.95163202]
[1748874683608,0.0493962,2530.9,2530.5,1.394]
[1748874683804,4.95488707,2530.9,2530.2,3.95217381]
[1748874684030,9.53103602,2530.6,2530.5,1.394]
[1748874684200,13.48266804,2530.6,2530.5,1.394]
[1748874686020,9.53103602,2530.6,2530.1,0.02]
[1748874686358,3.95210179,2530.3,2530.1,1.415]
[1748874686563,3.95225673,2530.2,2530.1,1.415]
[1748874686877,13.45979275,2530.2,2530.1,1.415]
[1748874687299,13.45979275,2530.2,2530.1,0.02]
[1748874687300,13.85633466,2530.2,2530.1,0.02]
[1748874687500,8.0,2530.0,2529.2,2.06166667]
[1748874687671,12.67918609,2529.5,2529.2,2.06166667]
[1748874687877,4.72236306,2529.3,2529.2,2.06166667]
[1748874688072,4.72236306,2529.3,2529.2,0.66666667]
[1748874688558,8.7687,2529.3,2529.2,0.66666667]
[1748874688756,0.7687,2529.3,2529.2,4.62048605]
[1748874688947,0.04942466,2529.5,2529.2,4.62041918]
[1748874689145,0.04942466,2529.5,2529.2,0.66666667]
[1748874689781,0.83012451,2529.6,2529.4,3.95350676]
[1748874689984,0.7937,2529.9,2529.5,4.604]
[1748874690148,0.7937,2529.9,2529.5,8.55727353]
[1748874690149,0.04941731,2529.8,2529.5,8.55727353]
[1748874690364,9.52033602,2530.2,2529.9,3.95263324]
[1748874690555,0.7946,2530.2,2529.8,3.95280662]
[1748874690761,0.7946,2530.2,2529.8,3.95274144]
[1748874691023,0.7946,2530.2,2529.9,3.95267133]
[1748874691139,0.7946,2530.2,2529.7,3.95296298]
[1748874691342,8.0,2530.1,2529.5,4.604]
[1748874691673,13.4833302,2529.6,2529.5,1.394]
[1748874691854,21.4833302,2529.6,2529.5,1.394]
[1748874692042,17.53013602,2529.6,2529.5,1.394]
[1748874692455,21.4833302,2529.6,2529.5,1.394]
[1748874692777,20.073768,2529.6,2529.5,1.394]
[1748874692984,24.02696218,2529.6,2529.5,1.394]
[1748874693697,8.0,2529.5,2529.2,0.66666667]
[1748874693995,8.0,2529.3,2529.2,0.66666667]
[1748874694369,0.04942705,2529.3,2529.2,0.66666667]
[1748874694773,8.04942705,2529.3,2529.2,0.66666667]
[1748874695300,5.5987266,2529.3,2529.2,0.66666667]
[1748874695505,12.00309011,2529.3,2529.2,0.66666667]
[1748874695706,8.0,2529.3,2529.2,0.66666667]
[1748874695885,0.7507,2530.0,2529.2,5.27166667]
[1748874696092,0.7507,2530.0,2529.6,3.95313743]
[1748874696398,0.04941406,2529.9,2529.2,0.66666667]
[1748874696616,0.04941406,2529.9,2529.4,3.95339917]
[1748874696617,4.00224293,2529.9,2529.4,3.95339917]
[1748874696805,8.04941406,2529.9,2529.4,3.95347337]
[1748874697124,8.04941406,2529.9,2529.6,3.95311748]
[1748874697265,8.04941406,2529.9,2529.3,5.999]
[1748874697266,8.04941406,2529.9,2529.7,4.605]
[1748874697468,14.15008993,2529.9,2529.2,0.66666667]
[1748874697784,14.10059815,2529.9,2529.6,1.394]
[1748874697995,8.0,2529.9,2529.6,1.394]
[1748874698302,12.0021543,2529.9,2529.6,1.394]
[1748874698480,11.95273731,2529.9,2529.6,1.394]
[1748874698676,11.95273731,2529.9,2529.6,5.34715157]
[1748874698677,0.04941709,2529.8,2529.6,5.34715157]
[1748874698890,0.04941709,2529.8,2529.6,1.394]
[1748874699410,0.7507,2530.0,2529.8,3.95282594]
[1748874699613,0.8307,2530.4,2530.1,3.95231169]
[1748874699835,0.8307,2530.4,2530.2,3.95224778]
[1748874700228,8.0,2530.6,2530.2,3.95224778]
[1748874700537,0.04940525,2530.6,2530.3,4.605]
[1748874700743,8.0,2530.4,2529.6,0.0201]
[1748874700939,8.0,2530.4,2530.3,1.394]
[1748874701144,8.0,2530.4,2530.3,5.999]
[1748874701637,8.97024705,2530.4,2530.0,3.9524761]
[1748874701848,12.67703675,2530.9,2530.3,3.95196095]
[1748874701849,4.74954814,2530.9,2530.3,3.95196095]
[1748874702022,4.74954814,2530.9,2530.2,5.999]
[1748874702023,8.7983,2530.9,2530.4,8.55689157]
[1748874702197,0.7983,2530.9,2530.4,8.5568563]
[1748874702400,3.95059966,2531.3,2530.4,4.605]
[1748874702598,0.47488997,2531.3,2530.4,4.605]
[1748874702948,8.04938938,2531.2,2530.7,3.95139147]
[1748874703113,0.04938938,2531.2,2530.9,3.95113998]
[1748874703314,0.04938938,2531.2,2531.0,1.394]
[1748874703531,0.7964,2531.8,2531.0,1.394]
[1748874703718,1.00359671,2531.7,2531.2,3.95061011]
[1748874704036,4.95352888,2531.7,2531.3,4.605]
[1748874704239,8.0,2531.6,2531.3,4.605]
[1748874704448,0.04938236,2531.5,2531.3,4.605]
[1748874704808,8.0,2531.4,2531.3,4.605]
[1748874705254,8.0,2531.6,2531.3,4.605]
[1748874705410,0.04938234,2531.5,2531.3,4.605]
[1748874705604,11.95038318,2531.4,2531.3,4.605]
[1748874705911,11.95059884,2531.3,2530.8,3.95131334]
[1748874706113,0.04938772,2531.2,2530.9,1.394]
[1748874706316,0.04938772,2531.2,2530.9,5.998]
[1748874707002,0.04938772,2531.2,2531.0,3.95089204]
[1748874707205,8.0,2531.4,2530.9,9.94907529]
[1748874707408,8.0,2531.4,2531.0,3.95097462]
[1748874707835,0.04938839,2531.3,2530.9,9.94909483]
[1748874708340,11.95040556,2531.4,2530.9,5.998]
[1748874708341,8.0,2531.4,2530.9,5.998]
[1748874708552,0.04938769,2531.5,2530.9,9.94908189]
[1748874708705,0.04938105,2531.7,2531.0,3.95099962]
[1748874708901,0.04938105,2531.7,2531.4,3.95028031]
[1748874709101,0.04938105,2531.7,2531.5,4.603]
[1748874710456,0.04938105,2531.7,2531.5,8.55321835]
[1748874710792,0.02,2531.9,2531.8,3.94975906]
[1748874710982,0.02,2531.9,2531.8,5.36385906]
[1748874711134,0.02,2531.9,2531.8,3.94975906]
[1748874711332,3.96966764,2531.9,2531.1,0.0201]
[1748874711534,4.77164514,2531.7,2531.1,0.0201]
[1748874711762,3.95023013,2531.5,2531.2,5.996]
[1748874711942,0.04938426,2531.4,2531.3,5.996]
[1748874712149,3.99988314,2531.4,2531.3,5.996]
[1748874712362,0.04938426,2531.4,2531.3,5.996]
[1748874712760,14.07230965,2531.4,2531.3,1.394]
[1748874713067,14.02292539,2531.4,2531.3,1.394]
[1748874713269,2.86534221,2531.4,2530.9,1.394]
[1748874713435,2.86534221,2531.4,2530.9,5.995]
[1748874713436,3.95090549,2531.1,2530.9,5.995]
[1748874713645,3.95090549,2531.1,2530.5,12.48571183]
[1748874713646,9.51590844,2531.1,2530.6,3.95153971]
[1748874713837,9.51590844,2531.1,2530.0,3.95245633]
[1748874713838,13.47182561,2530.6,2530.0,3.95245633]
[1748874714037,3.95225737,2530.2,2529.9,1.394]
[1748874714227,0.04940955,2530.1,2529.9,1.394]
[1748874714448,0.04940955,2530.1,2529.9,5.995]
[1748874714621,0.04940955,2530.1,2529.9,1.394]
[1748874714857,3.95256916,2530.0,2529.4,3.97359214]
[1748874715037,0.04941574,2529.9,2529.8,1.394]
[1748874715963,3.95314534,2529.7,2529.1,0.02]
[1748874716167,4.00270108,2529.6,2529.2,1.394]
[1748874716477,0.779,2529.3,2529.2,1.394]
[1748874716625,12.78208899,2529.3,2529.2,1.394]
[1748874716962,8.779,2529.3,2529.2,1.394]
[1748874719274,8.0,2529.3,2529.2,1.394]
[1748874719478,8.0,2529.3,2529.2,5.995]
[1748874720679,0.8078,2529.7,2529.2,5.995]
[1748874720876,0.04942091,2529.6,2529.2,5.995]
[1748874721095,0.04941913,2529.8,2529.4,3.95348848]
[1748874721275,11.95316367,2529.7,2529.1,3.9738373]
[1748874721591,12.67931954,2529.4,2529.1,0.02]
[1748874721754,8.04942771,2529.3,2529.2,8.55481938]
[1748874721949,8.0,2529.7,2529.4,3.95350676]
[1748874722137,0.04942059,2529.6,2529.3,3.95358606]
[1748874722345,0.04942059,2529.6,2529.2,4.601]
[1748874722927,8.72573602,2529.4,2529.1,1.411]
[1748874723041,0.87072822,2529.3,2529.2,4.601]
[1748874723254,0.87072822,2529.3,2529.1,1.411]
[1748874723255,3.95381938,2529.2,2529.1,0.02]
[1748874723485,11.95381938,2529.2,2529.1,0.02]
[1748874724268,20.6795554,2529.2,2529.1,0.02]
[1748874724446,23.22500934,2529.2,2529.1,0.02]
[1748874724646,0.8213,2529.3,2529.1,0.02]
[1748874724933,0.8146,2529.7,2529.1,0.02]
[1748874725081,0.04941804,2529.6,2529.5,3.95335046]
[1748874725260,9.54033602,2530.1,2529.7,3.95303418]
[1748874725261,0.04941741,2530.0,2529.7,3.95303418]
[1748874725468,0.8146,2530.1,2529.9,3.9527254]
[1748874725659,4.75657062,2530.4,2529.9,3.95263982]
[1748874725869,1.7928196,2530.3,2529.8,4.601]
[1748874726087,0.8046,2530.4,2529.8,4.601]
[1748874726282,0.04940873,2530.3,2530.0,3.95246192]
[1748874726611,0.7691,2530.8,2530.3,3.95206911]
[1748874726772,3.95149218,2530.7,2530.4,5.992]
[1748874726965,4.00097936,2530.7,2530.5,4.601]
[1748874727166,6.54568331,2530.7,2530.5,4.601]
[1748874727500,3.95178818,2530.5,2530.4,1.391]
[1748874727707,20.72693238,2530.5,2530.4,1.391]
[1748874727866,20.6775242,2530.5,2530.4,1.391]
[1748874728207,8.0,2530.5,2530.4,1.391]
[1748874728432,0.04940582,2530.5,2530.4,1.391]
[1748874728612,9.49483602,2530.8,2530.4,1.391]
[1748874728766,0.04939954,2530.7,2530.4,5.34284086]
[1748874729386,8.04939954,2530.7,2530.4,5.34284086]
[1748874729593,8.04939954,2530.7,2530.4,1.391]
[1748874730414,3.95273251,2529.9,2529.1,0.02]
[1748874730601,4.00231581,2529.8,2529.4,4.6]
[1748874730802,4.00231581,2529.8,2529.2,3.95376411]
[1748874731004,0.0494192,2529.8,2529.5,4.599]
[1748874731306,3.95322175,2529.6,2529.1,0.02]
[1748874731510,0.04942169,2529.5,2529.1,0.02]
[1748874731666,11.27548049,2529.8,2529.1,0.02]
[1748874731667,3.95319977,2529.6,2529.2,4.599]
[1748874731869,0.04942169,2529.5,2529.3,5.99]
[1748874732165,3.95350676,2529.4,2529.3,1.391]
[1748874732477,3.95350676,2529.4,2529.1,0.02]
[1748874732677,4.00313159,2529.3,2529.2,4.599]
[1748874733205,0.04942631,2529.3,2529.2,4.599]
[1748874733419,0.04942447,2529.6,2529.2,8.55273945]
[1748874733908,0.04942447,2529.6,2529.2,8.55271003]
[1748874734082,0.04942447,2529.6,2529.3,3.95352531]
[1748874734277,0.04942447,2529.6,2529.5,3.95335046]
[1748874734485,8.0,2529.8,2529.5,8.55235046]
[1748874734814,0.7875,2530.4,2529.6,3.95319418]
[1748874735007,4.00105432,2530.6,2530.1,3.95232836]
[1748874735168,5.30329849,2530.5,2530.2,5.99]
[1748874735382,5.30329849,2530.5,2529.7,0.0201]
[1748874735383,3.95288165,2529.8,2529.7,1.391]
[1748874735608,12.67861767,2529.8,2529.7,1.391]
[1748874735794,8.72573602,2529.8,2529.7,1.391]
[1748874736310,12.67861767,2529.8,2529.7,1.391]
[1748874737112,8.72573602,2529.8,2529.7,1.391]
[1748874737262,8.0,2529.9,2529.7,1.391]
[1748874737463,0.049415,2529.9,2529.7,5.989]
[1748874737668,5.30326181,2530.5,2529.8,3.95281067]
[1748874738019,0.04941121,2530.4,2529.7,9.94195177]
[1748874738186,3.95216801,2530.3,2529.8,3.95284565]
[1748874738383,3.95199736,2530.4,2529.9,3.95260853]
[1748874738595,0.04941051,2530.4,2529.7,5.989]
[1748874739215,3.95216754,2530.3,2529.8,1.391]
[1748874739381,0.04940854,2530.2,2529.9,4.598]
[1748874740382,0.04940854,2530.2,2529.9,8.55066893]
[1748874740583,4.00121116,2530.5,2530.0,3.95242933]
[1748874740894,0.04940854,2530.5,2530.1,3.95234666]
[1748874741212,4.00126075,2530.5,2529.9,4.598]
[1748874741368,0.04940854,2530.5,2529.9,8.55060686]
[1748874741600,12.67665361,2531.1,2530.6,3.95155345]
[1748874741910,4.0004821,2531.0,2530.7,4.598]
[1748874742109,0.04940111,2531.0,2530.7,4.598]
[1748874742516,4.00042549,2531.0,2530.7,4.598]
[1748874742833,0.04940111,2531.0,2530.7,4.598]
[1748874743046,0.8038,2531.2,2530.7,4.598]
[1748874743200,0.04938972,2531.4,2530.9,3.95103445]
[1748874743376,0.04938972,2531.4,2530.7,4.598]
[1748874743377,3.9998486,2531.4,2530.7,4.598]
[1748874743687,3.95069925,2531.2,2530.7,8.54936017]
[1748874744010,0.04938836,2531.1,2530.9,3.95114653]
[1748874744209,0.04938836,2531.3,2530.7,4.598]
[1748874744427,4.00007039,2531.3,2530.7,8.54938559]
[1748874744655,0.04938836,2531.3,2530.7,4.598]
[1748874744857,8.8044,2531.5,2530.8,3.95131974]
[1748874745138,3.94978438,2531.8,2530.7,4.598]
[1748874745332,3.95007394,2531.6,2531.1,3.95078086]
[1748874745478,0.0493821,2531.5,2531.2,4.596]
[1748874745687,0.0493821,2531.6,2531.2,4.596]
[1748874745910,0.04937796,2531.7,2531.5,3.95012697]
[1748874746084,0.04937796,2531.7,2531.6,5.987]
[1748874747032,5.27974454,2531.7,2531.6,1.391]
[1748874747373,5.23036658,2531.7,2531.6,1.391]
[1748874747571,0.04938109,2531.7,2531.6,1.391]
[1748874748108,8.8053,2531.9,2531.6,1.391]
[1748874748428,0.04937694,2531.8,2531.6,1.391]
[1748874748584,0.04937694,2531.8,2531.7,4.595]
[1748874748802,0.06937493,2531.9,2531.8,3.94975906]
[1748874748991,0.02,2531.9,2531.8,3.94975906]
[1748874750408,0.02,2531.9,2531.7,8.54484903]
[1748874750616,0.02,2531.9,2531.8,3.94975906]
[1748874750774,0.02,2531.9,2531.8,4.74975906]
[1748874751514,0.02,2531.9,2531.8,0.8]
[1748874751919,0.02,2531.9,2531.8,10.72975906]
[1748874752118,0.02,2531.9,2531.8,9.92975906]
[1748874754446,0.8061,2531.9,2531.1,0.0201]
[1748874754634,3.95058894,2531.3,2531.1,4.592]
[1748874754784,3.95058388,2531.3,2531.1,4.592]
[1748874755185,0.049385,2531.5,2531.2,4.592]
[1748874755598,4.75577492,2531.9,2531.4,3.95027906]
[1748874755795,3.99914836,2531.8,2531.4,0.8]
[1748874756027,3.94991507,2531.7,2531.4,0.8]
[1748874756196,3.99945226,2531.6,2531.5,5.979]
[1748874756394,0.04938116,2531.6,2531.5,5.979]
[1748874756726,3.99945226,2531.6,2531.5,5.979]
[1748874756923,0.04938116,2531.6,2531.5,5.979]
[1748874757098,3.9500711,2531.6,2531.5,5.979]
[1748874757296,3.95053854,2531.4,2531.1,1.387]
[1748874757494,8.72573602,2531.5,2531.1,5.978]
[1748874757725,3.95055764,2531.3,2531.2,4.591]
[1748874758233,3.95069532,2531.2,2531.1,1.387]
[1748874758425,4.87746142,2531.2,2531.1,1.387]
[1748874758651,5.27962069,2531.2,2531.1,1.387]
[1748874758803,13.82962069,2531.2,2531.1,1.387]
[1748874759000,13.78022858,2531.2,2531.1,1.387]
[1748874759203,13.78022858,2531.2,2530.5,4.591]
[1748874759204,3.95102288,2531.0,2530.5,4.591]
[1748874759413,0.04939759,2531.0,2530.7,3.95134721]
[1748874759599,0.04939759,2531.0,2530.5,4.591]
[1748874759832,0.04938778,2531.0,2530.6,9.92960952]
[1748874760018,4.00040625,2531.0,2530.7,4.591]
[1748874760214,4.00045627,2531.0,2530.5,3.95171006]
[1748874760432,0.04938778,2531.0,2530.6,5.977]
[1748874760632,4.00047361,2531.0,2530.6,5.977]
[1748874760834,3.95128506,2530.9,2530.6,5.977]
[1748874760989,0.0493933,2530.8,2530.6,5.977]
[1748874761200,3.95128506,2530.9,2530.6,5.977]
[1748874761201,0.0493934,2530.9,2530.6,5.977]
[1748874761633,3.95140241,2530.8,2530.7,5.977]
[1748874762006,0.0493934,2530.9,2530.7,5.977]
[1748874762430,4.000306,2531.1,2530.7,5.977]
[1748874762630,0.04939564,2531.1,2530.7,9.92843263]
[1748874762830,21.07968116,2531.2,2530.7,1.387]
[1748874763036,3.9511053,2531.0,2530.7,5.977]
[1748874763230,0.04939416,2530.9,2530.7,5.977]
[1748874763432,4.00063046,2530.9,2530.7,5.977]
[1748874764023,4.00058095,2530.9,2530.7,5.977]
[1748874764560,3.95131974,2530.8,2530.7,5.977]
[1748874764751,10.35321167,2530.8,2530.5,1.387]
[1748874764951,3.95163202,2530.6,2530.5,1.387]
[1748874765154,4.00102599,2530.7,2530.5,1.387]
[1748874765331,8.0,2531.1,2530.5,5.3387604]
[1748874765662,8.04939568,2531.0,2530.6,3.95155438]
[1748874765860,8.04939568,2531.0,2530.7,8.54147546]
[1748874766256,8.04939568,2531.0,2530.7,4.59]
[1748874766461,3.95119718,2530.9,2530.7,4.59]
[1748874766651,0.04939419,2530.8,2530.7,4.59]
[1748874766984,1.2304465,2531.2,2530.7,4.59]
[1748874767163,0.0493917,2531.1,2530.7,8.54138844]
[1748874767360,0.0493917,2531.1,2530.7,4.59]
[1748874767769,11.9506314,2531.3,2530.7,4.59]
[1748874767940,4.00025058,2531.1,2530.7,4.59]